[Event "*** Titled Tuesday Blitz"]
[Site "Chess.com"]
[Date "2020.12.29"]
[Round "5"]
[White "Rud_Makarian"]
[Black "Forantes"]
[Result "1-0"]
[WhiteElo "2687"]
[BlackElo "2390"]
[TimeControl "180+1"]
[EndTime "10:54:38 PST"]
[Termination "Rud_Makarian won by checkmate"]

1. f4 {[%clk 0:02:54.2]} 1... d5 {[%clk 0:02:58.2]} 2. Nf3 {[%clk 0:02:52]} 2...
g6 {[%clk 0:02:57.8]} 3. g3 {[%clk 0:02:51.9]} 3... Bg7 {[%clk 0:02:58]} 4. Bg2
{[%clk 0:02:52.8]} 4... Nf6 {[%clk 0:02:58.3]} 5. O-O {[%clk 0:02:53.5]} 5...
O-O {[%clk 0:02:58.4]} 6. d3 {[%clk 0:02:54.4]} 6... c5 {[%clk 0:02:58.4]} 7.
Ne5 {[%clk 0:02:52]} 7... Nc6 {[%clk 0:02:57.4]} 8. Nxc6 {[%clk 0:02:37.8]} 8...
bxc6 {[%clk 0:02:57.6]} 9. c4 {[%clk 0:02:38]} 9... Bg4 {[%clk 0:02:41.3]} 10.
Nc3 {[%clk 0:02:35.6]} 10... Qd7 {[%clk 0:02:37.4]} 11. Qa4 {[%clk 0:02:19]}
11... d4 {[%clk 0:02:03.7]} 12. Ne4 {[%clk 0:02:12.8]} 12... Bxe2 {[%clk
0:01:58.4]} 13. Nxc5 {[%clk 0:02:08.6]} 13... Qd6 {[%clk 0:01:43.7]} 14. Re1
{[%clk 0:02:08.1]} 14... Qxc5 {[%clk 0:01:37.4]} 15. Rxe2 {[%clk 0:02:07.4]}
15... Qh5 {[%clk 0:01:21.8]} 16. Re5 {[%clk 0:02:06.5]} 16... Qg4 {[%clk
0:01:16.8]} 17. Bd2 {[%clk 0:02:05]} 17... Nd7 {[%clk 0:00:52.7]} 18. Rxe7
{[%clk 0:01:57.6]} 18... Nc5 {[%clk 0:00:52.3]} 19. Qxc6 {[%clk 0:01:58.1]}
19... Rac8 {[%clk 0:00:47.8]} 20. Qf3 {[%clk 0:01:57.3]} 20... Qxf3 {[%clk
0:00:46.6]} 21. Bxf3 {[%clk 0:01:58.2]} 21... Nxd3 {[%clk 0:00:47.2]} 22. b3
{[%clk 0:01:58.4]} 22... Nc5 {[%clk 0:00:35]} 23. Kg2 {[%clk 0:01:56]} 23... d3
{[%clk 0:00:30.2]} 24. Rae1 {[%clk 0:01:53.5]} 24... a6 {[%clk 0:00:29.8]} 25.
Bd5 {[%clk 0:01:53]} 25... Bf6 {[%clk 0:00:26.5]} 26. Ra7 {[%clk 0:01:51.4]}
26... Kg7 {[%clk 0:00:24.2]} 27. g4 {[%clk 0:01:51]} 27... h6 {[%clk 0:00:23.4]}
28. g5 {[%clk 0:01:50.6]} 28... hxg5 {[%clk 0:00:23]} 29. fxg5 {[%clk
0:01:51.5]} 29... Bd4 {[%clk 0:00:16.3]} 30. Ree7 {[%clk 0:01:51.1]} 30... Rce8
{[%clk 0:00:07.9]} 31. Rxf7+ {[%clk 0:01:49.6]} 31... Rxf7 {[%clk 0:00:08.4]}
32. Rxf7+ {[%clk 0:01:49.2]} 32... Kh8 {[%clk 0:00:09]} 33. Bb4 {[%clk
0:01:40.9]} 33... Re2+ {[%clk 0:00:08.6]} 34. Kf3 {[%clk 0:01:36.3]} 34... Rf2+
{[%clk 0:00:07]} 35. Kg4 {[%clk 0:01:36.7]} 35... Rxf7 {[%clk 0:00:05.7]} 36.
Bxf7 {[%clk 0:01:36.1]} 36... Ne4 {[%clk 0:00:06.1]} 37. Bxg6 {[%clk 0:01:26.3]}
37... d2 {[%clk 0:00:06.4]} 38. Bxd2 {[%clk 0:01:26.3]} 38... Nxd2 {[%clk
0:00:07.3]} 39. h4 {[%clk 0:01:26.9]} 39... Bc5 {[%clk 0:00:05.1]} 40. h5 {[%clk
0:01:27.1]} 40... Nf1 {[%clk 0:00:04.8]} 41. Bd3 {[%clk 0:01:26.8]} 41... Ne3+
{[%clk 0:00:04.7]} 42. Kf4 {[%clk 0:01:27.4]} 42... Ng2+ {[%clk 0:00:04.7]} 43.
Ke5 {[%clk 0:01:26.8]} 43... Nh4 {[%clk 0:00:03.2]} 44. Be4 {[%clk 0:01:25.2]}
44... Be3 {[%clk 0:00:02.3]} 45. g6 {[%clk 0:01:24.5]} 45... a5 {[%clk
0:00:02.7]} 46. Kd6 {[%clk 0:01:24.2]} 46... Kg7 {[%clk 0:00:02.6]} 47. c5
{[%clk 0:01:24.6]} 47... Kh6 {[%clk 0:00:02.4]} 48. c6 {[%clk 0:01:25]} 48...
Bf4+ {[%clk 0:00:02.9]} 49. Kd7 {[%clk 0:01:25.2]} 49... Be5 {[%clk 0:00:02.1]}
50. c7 {[%clk 0:01:25.5]} 50... Bxc7 {[%clk 0:00:01.9]} 51. Kxc7 {[%clk
0:01:26.4]} 51... a4 {[%clk 0:00:02.8]} 52. bxa4 {[%clk 0:01:26]} 52... Kg7
{[%clk 0:00:03.2]} 53. a5 {[%clk 0:01:26.2]} 53... Kh6 {[%clk 0:00:02.8]} 54. a6
{[%clk 0:01:26.7]} 54... Kg7 {[%clk 0:00:03.3]} 55. a7 {[%clk 0:01:27.3]} 55...
Nf5 {[%clk 0:00:04.2]} 56. a8=Q {[%clk 0:01:25.9]} 56... Kh6 {[%clk 0:00:04.4]}
57. Qh8+ {[%clk 0:01:25.7]} 57... Kg5 {[%clk 0:00:04.7]} 58. Qe5 {[%clk
0:01:26.1]} 58... Kh6 {[%clk 0:00:05]} 59. g7 {[%clk 0:01:25.1]} 59... Nxg7
{[%clk 0:00:04.6]} 60. Qf6+ {[%clk 0:01:24.5]} 60... Kxh5 {[%clk 0:00:04.9]} 61.
Qxg7 {[%clk 0:01:24.2]} 61... Kh4 {[%clk 0:00:05.4]} 62. Bf5 {[%clk 0:01:24.8]}
62... Kh5 {[%clk 0:00:04.8]} 63. Qg6+ {[%clk 0:01:25.7]} 63... Kh4 {[%clk
0:00:05]} 64. Qg4# {[%clk 0:01:26.6]} 1-0

[Event "*** Titled Tuesday Blitz"]
[Site "Chess.com"]
[Date "2020.12.29"]
[Round "5"]
[White "WonderChampion"]
[Black "Trickov"]
[Result "0-1"]
[WhiteElo "2060"]
[BlackElo "2323"]
[TimeControl "180+1"]
[EndTime "10:54:38 PST"]
[Termination "Trickov won by checkmate"]

1. d4 {[%clk 0:03:00.9]} 1... d5 {[%clk 0:02:58.6]} 2. Bg5 {[%clk 0:02:59.7]}
2... h6 {[%clk 0:02:56.3]} 3. Bf4 {[%clk 0:02:57.9]} 3... Nf6 {[%clk 0:02:55.9]}
4. Nf3 {[%clk 0:02:56.6]} 4... c5 {[%clk 0:02:54.5]} 5. e3 {[%clk 0:02:55.2]}
5... Nc6 {[%clk 0:02:54]} 6. Bd3 {[%clk 0:02:48.1]} 6... Qb6 {[%clk 0:02:50.7]}
7. Nc3 {[%clk 0:02:36.9]} 7... c4 {[%clk 0:02:42.8]} 8. Be2 {[%clk 0:02:34]}
8... Qxb2 {[%clk 0:02:28.9]} 9. Na4 {[%clk 0:02:30.4]} 9... Qb5 {[%clk
0:02:17.9]} 10. c3 {[%clk 0:02:25.2]} 10... Bf5 {[%clk 0:02:14.7]} 11. O-O
{[%clk 0:02:23.5]} 11... e6 {[%clk 0:02:11.7]} 12. Ne5 {[%clk 0:02:17.6]} 12...
Be7 {[%clk 0:02:07.5]} 13. f3 {[%clk 0:01:38.7]} 13... O-O {[%clk 0:01:56.3]}
14. g4 {[%clk 0:01:25.6]} 14... Bh7 {[%clk 0:01:50.7]} 15. Bg3 {[%clk
0:01:21.7]} 15... Rac8 {[%clk 0:01:45.2]} 16. h4 {[%clk 0:01:19.9]} 16... Nxe5
{[%clk 0:01:34.8]} 17. Bxe5 {[%clk 0:01:15.4]} 17... Qa5 {[%clk 0:01:31]} 18. g5
{[%clk 0:01:08.4]} 18... hxg5 {[%clk 0:01:29.8]} 19. hxg5 {[%clk 0:01:09.3]}
19... Nd7 {[%clk 0:01:29.9]} 20. Bf4 {[%clk 0:01:07]} 20... b5 {[%clk
0:01:27.7]} 21. Nc5 {[%clk 0:00:52.2]} 21... Nxc5 {[%clk 0:01:26.3]} 22. dxc5
{[%clk 0:00:53.1]} 22... Qxc3 {[%clk 0:01:22.5]} 23. Rc1 {[%clk 0:00:48.8]}
23... Qa3 {[%clk 0:01:19.5]} 24. Rf2 {[%clk 0:00:39.4]} 24... Bxc5 {[%clk
0:01:18.1]} 25. Qd2 {[%clk 0:00:39]} 25... b4 {[%clk 0:01:14.7]} 26. Rh2 {[%clk
0:00:38.2]} 26... Bg6 {[%clk 0:01:13.6]} 27. Bf1 {[%clk 0:00:34.3]} 27... b3
{[%clk 0:01:08.7]} 28. axb3 {[%clk 0:00:33.6]} 28... cxb3 {[%clk 0:01:08.8]} 29.
Qd1 {[%clk 0:00:29]} 29... b2 {[%clk 0:01:05]} 30. Rb1 {[%clk 0:00:25.5]} 30...
Bxe3+ {[%clk 0:01:03.1]} 31. Bxe3 {[%clk 0:00:23.8]} 31... Qxe3+ {[%clk
0:01:02.8]} 32. Kg2 {[%clk 0:00:22.6]} 32... Qxg5+ {[%clk 0:01:01.6]} 33. Kh1
{[%clk 0:00:21.7]} 33... Bxb1 {[%clk 0:00:50.8]} 34. Qxb1 {[%clk 0:00:20.5]}
34... Qf5 {[%clk 0:00:50.7]} 35. Qxb2 {[%clk 0:00:19.3]} 35... Qxf3+ {[%clk
0:00:48.5]} 36. Rg2 {[%clk 0:00:19.5]} 36... Qxf1+ {[%clk 0:00:45.9]} 37. Kh2
{[%clk 0:00:19.1]} 37... Qf4+ {[%clk 0:00:39]} 38. Kh3 {[%clk 0:00:15.8]} 38...
d4 {[%clk 0:00:34.8]} 39. Rg4 {[%clk 0:00:12.9]} 39... Rc3+ {[%clk 0:00:32.8]}
40. Kh4 {[%clk 0:00:09.5]} 40... Qh6# {[%clk 0:00:32.6]} 0-1

[Event "*** Titled Tuesday Blitz"]
[Site "Chess.com"]
[Date "2020.12.29"]
[Round "5"]
[White "maxip32"]
[Black "Evgeny81"]
[Result "0-1"]
[WhiteElo "2508"]
[BlackElo "2720"]
[TimeControl "180+1"]
[EndTime "10:54:39 PST"]
[Termination "Evgeny81 won on time"]

1. e4 {[%clk 0:03:00.9]} 1... c5 {[%clk 0:02:59]} 2. Nf3 {[%clk 0:03:00.6]} 2...
Nc6 {[%clk 0:02:58.8]} 3. d4 {[%clk 0:02:59.8]} 3... cxd4 {[%clk 0:02:59.7]} 4.
Nxd4 {[%clk 0:03:00.4]} 4... g6 {[%clk 0:02:58.2]} 5. c4 {[%clk 0:03:00]} 5...
Bg7 {[%clk 0:02:58.3]} 6. Be3 {[%clk 0:02:59.6]} 6... d6 {[%clk 0:02:57.6]} 7.
Nc3 {[%clk 0:02:58.7]} 7... Nf6 {[%clk 0:02:57.7]} 8. Be2 {[%clk 0:02:58.9]}
8... O-O {[%clk 0:02:56.7]} 9. O-O {[%clk 0:02:58.9]} 9... Nxd4 {[%clk
0:02:55.7]} 10. Bxd4 {[%clk 0:02:58.9]} 10... Be6 {[%clk 0:02:56.3]} 11. Rc1
{[%clk 0:02:55.8]} 11... a5 {[%clk 0:02:55.1]} 12. b3 {[%clk 0:02:54.3]} 12...
a4 {[%clk 0:02:51.3]} 13. f3 {[%clk 0:02:48]} 13... axb3 {[%clk 0:02:49.1]} 14.
axb3 {[%clk 0:02:48.9]} 14... Nd7 {[%clk 0:02:45.8]} 15. Be3 {[%clk 0:02:43.8]}
15... Qa5 {[%clk 0:02:37]} 16. Nb5 {[%clk 0:02:43.4]} 16... Rfc8 {[%clk
0:02:32]} 17. f4 {[%clk 0:02:21.1]} 17... Nc5 {[%clk 0:02:20.2]} 18. f5 {[%clk
0:02:20.2]} 18... Bd7 {[%clk 0:02:20.3]} 19. fxg6 {[%clk 0:01:53]} 19... hxg6
{[%clk 0:02:18.8]} 20. Bg4 {[%clk 0:00:34.8]} 20... Bxg4 {[%clk 0:02:06.8]} 21.
Qxg4 {[%clk 0:00:33.9]} 21... Nxb3 {[%clk 0:01:59.3]} 22. Rc2 {[%clk 0:00:19.7]}
22... Nc5 {[%clk 0:01:30.2]} 23. Rcf2 {[%clk 0:00:18.7]} 23... Rf8 {[%clk
0:01:30.2]} 24. Qh4 {[%clk 0:00:16.1]} 24... Qa4 {[%clk 0:00:24.7]} 25. Nc7
{[%clk 0:00:12.1]} 25... Qxc4 {[%clk 0:00:16.7]} 26. Nd5 {[%clk 0:00:11.5]}
26... Rae8 {[%clk 0:00:14.3]} 27. Bh6 {[%clk 0:00:05.9]} 27... Qxe4 {[%clk
0:00:12.6]} 28. Nf4 {[%clk 0:00:02.5]} 28... Nd3 {[%clk 0:00:10.5]} 29. Bxg7
{[%clk 0:00:01.4]} 29... f6 {[%clk 0:00:07]} 0-1

[Event "*** Titled Tuesday Blitz"]
[Site "Chess.com"]
[Date "2020.12.29"]
[Round "5"]
[White "Astaneh"]
[Black "Zhigalko_Sergei"]
[Result "0-1"]
[WhiteElo "2607"]
[BlackElo "2855"]
[TimeControl "180+1"]
[EndTime "10:54:41 PST"]
[Termination "Zhigalko_Sergei won by resignation"]

1. e4 {[%clk 0:02:58]} 1... c5 {[%clk 0:02:59.3]} 2. Nf3 {[%clk 0:02:58.4]} 2...
Nc6 {[%clk 0:02:58.5]} 3. Nc3 {[%clk 0:02:59.3]} 3... Nf6 {[%clk 0:02:54.4]} 4.
a3 {[%clk 0:02:59.6]} 4... e6 {[%clk 0:02:39.4]} 5. Bc4 {[%clk 0:02:57.2]} 5...
Nxe4 {[%clk 0:02:27.6]} 6. Nxe4 {[%clk 0:02:55.5]} 6... d5 {[%clk 0:02:27.8]} 7.
Bd3 {[%clk 0:02:56.4]} 7... c4 {[%clk 0:02:23.7]} 8. Bxc4 {[%clk 0:02:47.7]}
8... dxe4 {[%clk 0:02:23.6]} 9. Ng1 {[%clk 0:02:48.3]} 9... Bc5 {[%clk
0:01:57.5]} 10. Ne2 {[%clk 0:02:45.8]} 10... O-O {[%clk 0:01:51.8]} 11. O-O
{[%clk 0:02:45.4]} 11... Ne5 {[%clk 0:01:51.9]} 12. Bb3 {[%clk 0:02:40.6]} 12...
Qh4 {[%clk 0:01:51]} 13. d4 {[%clk 0:02:22.5]} 13... exd3 {[%clk 0:01:34.8]} 14.
Nf4 {[%clk 0:02:22.2]} 14... Ng4 {[%clk 0:01:11.5]} 15. Nh3 {[%clk 0:02:19.3]}
15... dxc2 {[%clk 0:00:39.9]} 16. Bxc2 {[%clk 0:02:19.4]} 16... e5 {[%clk
0:00:33.4]} 17. Qf3 {[%clk 0:01:54.9]} 17... Be6 {[%clk 0:00:25.6]} 18. Qxb7
{[%clk 0:01:49.1]} 18... Rac8 {[%clk 0:00:23.3]} 19. Qe4 {[%clk 0:01:32.5]}
19... f5 {[%clk 0:00:19.9]} 20. Qa4 {[%clk 0:01:28]} 20... Bb6 {[%clk
0:00:14.7]} 21. Bb3 {[%clk 0:01:20]} 21... Bxb3 {[%clk 0:00:10]} 22. Qxb3+
{[%clk 0:01:20.9]} 22... Kh8 {[%clk 0:00:10.6]} 23. Bg5 {[%clk 0:01:14.1]} 23...
Qh5 {[%clk 0:00:10.2]} 24. Qf3 {[%clk 0:01:12.4]} 24... e4 {[%clk 0:00:09.8]}
25. Qg3 {[%clk 0:01:12.9]} 25... h6 {[%clk 0:00:09.1]} 26. Bd2 {[%clk
0:01:09.5]} 26... g5 {[%clk 0:00:09.4]} 27. Bc3+ {[%clk 0:01:08.6]} 27... Kh7
{[%clk 0:00:08.9]} 28. Rad1 {[%clk 0:01:08.8]} 28... Rf7 {[%clk 0:00:08.5]} 29.
Rd6 {[%clk 0:01:07]} 29... f4 {[%clk 0:00:08]} 30. Nxf4 {[%clk 0:00:43.1]} 30...
gxf4 {[%clk 0:00:08.3]} 31. Qh3 {[%clk 0:00:44]} 31... Qxh3 {[%clk 0:00:08]} 32.
gxh3 {[%clk 0:00:44.9]} 32... Nxf2 {[%clk 0:00:06.3]} 33. Rxf2 {[%clk
0:00:45.8]} 33... Rg8+ {[%clk 0:00:04.6]} 34. Kf1 {[%clk 0:00:46.2]} 34... Bxf2
{[%clk 0:00:04.6]} 35. Kxf2 {[%clk 0:00:47.1]} 35... f3 {[%clk 0:00:03.9]} 36.
Bd2 {[%clk 0:00:46.7]} 36... Rg2+ {[%clk 0:00:03.6]} 37. Kf1 {[%clk 0:00:45.2]}
37... Rxh2 {[%clk 0:00:03.5]} 38. Rxh6+ {[%clk 0:00:44]} 38... Kg7 {[%clk
0:00:03.7]} 39. Rd6 {[%clk 0:00:44.9]} 39... Rh1+ {[%clk 0:00:03.4]} 40. Kf2
{[%clk 0:00:45.1]} 40... Rh2+ {[%clk 0:00:03.9]} 41. Kg3 {[%clk 0:00:43.4]}
41... Rg2+ {[%clk 0:00:03.8]} 42. Kh4 {[%clk 0:00:44]} 42... f2 {[%clk
0:00:04.6]} 43. Bc3+ {[%clk 0:00:44.2]} 43... Kh7 {[%clk 0:00:04.5]} 44. Kh5
{[%clk 0:00:37.7]} 44... Rf5+ {[%clk 0:00:04.6]} 0-1

[Event "*** Titled Tuesday Blitz"]
[Site "Chess.com"]
[Date "2020.12.29"]
[Round "5"]
[White "NovikovaGalina"]
[Black "Love_craft"]
[Result "1-0"]
[WhiteElo "2260"]
[BlackElo "2474"]
[TimeControl "180+1"]
[EndTime "10:54:41 PST"]
[Termination "NovikovaGalina won on time"]

1. e4 {[%clk 0:02:59.6]} 1... g6 {[%clk 0:02:59.8]} 2. d4 {[%clk 0:02:59.2]}
2... Bg7 {[%clk 0:03:00.1]} 3. Nc3 {[%clk 0:02:58.7]} 3... d6 {[%clk 0:03:00.5]}
4. Be3 {[%clk 0:02:57.8]} 4... a6 {[%clk 0:03:00.6]} 5. f3 {[%clk 0:02:58.3]}
5... b5 {[%clk 0:02:59.7]} 6. Qd2 {[%clk 0:02:58.8]} 6... Bb7 {[%clk 0:02:58.2]}
7. O-O-O {[%clk 0:02:59.2]} 7... h5 {[%clk 0:02:58.2]} 8. h4 {[%clk 0:02:56.1]}
8... Nd7 {[%clk 0:02:58.3]} 9. Nh3 {[%clk 0:02:55.8]} 9... Rc8 {[%clk
0:02:58.5]} 10. Nf2 {[%clk 0:02:52]} 10... c5 {[%clk 0:02:57.7]} 11. g4 {[%clk
0:02:51.6]} 11... c4 {[%clk 0:02:50.7]} 12. gxh5 {[%clk 0:02:48.9]} 12... Rxh5
{[%clk 0:02:46.9]} 13. Ne2 {[%clk 0:02:37.7]} 13... c3 {[%clk 0:02:30.9]} 14.
Nxc3 {[%clk 0:02:36.3]} 14... b4 {[%clk 0:02:27.1]} 15. Ne2 {[%clk 0:02:33.3]}
15... Ra5 {[%clk 0:02:19.9]} 16. Kb1 {[%clk 0:02:30.4]} 16... Nb6 {[%clk
0:02:18.5]} 17. Nc1 {[%clk 0:02:30.3]} 17... Nf6 {[%clk 0:00:52.3]} 18. d5
{[%clk 0:01:55.2]} 18... Qc7 {[%clk 0:00:32.7]} 19. Nb3 {[%clk 0:01:44.7]} 19...
Na4 {[%clk 0:00:20]} 20. Bd4 {[%clk 0:01:25.2]} 20... Kf8 {[%clk 0:00:09.2]} 21.
Rc1 {[%clk 0:01:18]} 21... Rb5 {[%clk 0:00:06.3]} 22. Bxb5 {[%clk 0:01:15.4]}
22... axb5 {[%clk 0:00:07.2]} 23. Qxb4 {[%clk 0:01:11.6]} 23... Ra8 {[%clk
0:00:07.1]} 24. Ng4 {[%clk 0:00:59.7]} 24... Nh5 {[%clk 0:00:04.2]} 25. Bxg7+
{[%clk 0:01:00.6]} 25... Kxg7 {[%clk 0:00:04.6]} 26. Qd4+ {[%clk 0:00:52.9]}
26... f6 {[%clk 0:00:05]} 27. Qd2 {[%clk 0:00:33.3]} 27... Bc8 {[%clk
0:00:03.8]} 28. Qh6+ {[%clk 0:00:29.9]} 28... Kf7 {[%clk 0:00:04.1]} 29. Qh7+
{[%clk 0:00:29.9]} 29... Ke8 {[%clk 0:00:01.2]} 30. Qxg6+ {[%clk 0:00:29.3]}
30... Kd8 {[%clk 0:00:01.3]} 31. Qxh5 {[%clk 0:00:28.5]} 31... Qa7 {[%clk
0:00:01.3]} 32. Qh8+ {[%clk 0:00:14.9]} 1-0

[Event "*** Titled Tuesday Blitz"]
[Site "Chess.com"]
[Date "2020.12.29"]
[Round "5"]
[White "Yoda1992"]
[Black "RobertoJBM"]
[Result "0-1"]
[WhiteElo "2497"]
[BlackElo "2711"]
[TimeControl "180+1"]
[EndTime "10:54:42 PST"]
[Termination "RobertoJBM won by checkmate"]

1. d4 {[%clk 0:03:00.9]} 1... d5 {[%clk 0:02:56.5]} 2. Bf4 {[%clk 0:03:00.4]}
2... e6 {[%clk 0:02:55.6]} 3. e3 {[%clk 0:03:00.9]} 3... Bd6 {[%clk 0:02:55.4]}
4. Bg3 {[%clk 0:03:01.5]} 4... Bxg3 {[%clk 0:02:54.9]} 5. hxg3 {[%clk
0:03:02.4]} 5... Qd6 {[%clk 0:02:55.4]} 6. Bd3 {[%clk 0:03:02.7]} 6... Qb4+
{[%clk 0:02:54.7]} 7. Nd2 {[%clk 0:03:03]} 7... Qxb2 {[%clk 0:02:54.5]} 8. Ngf3
{[%clk 0:03:01.9]} 8... c5 {[%clk 0:02:50.5]} 9. Rb1 {[%clk 0:02:26.3]} 9...
Qxa2 {[%clk 0:02:45.2]} 10. Ra1 {[%clk 0:02:25.8]} 10... Qb2 {[%clk 0:02:44]}
11. Rb1 {[%clk 0:02:26]} 11... Qc3 {[%clk 0:02:24.9]} 12. Rb3 {[%clk 0:02:23.8]}
12... Qa5 {[%clk 0:02:24.5]} 13. Rb5 {[%clk 0:02:23.9]} 13... Qd8 {[%clk
0:02:22]} 14. Rxc5 {[%clk 0:02:22.5]} 14... a6 {[%clk 0:02:16.6]} 15. Rxh7
{[%clk 0:02:18.4]} 15... Rxh7 {[%clk 0:02:13.5]} 16. Bxh7 {[%clk 0:02:19.3]}
16... Nf6 {[%clk 0:02:14]} 17. Bd3 {[%clk 0:02:19.5]} 17... b5 {[%clk
0:02:01.1]} 18. Ne5 {[%clk 0:02:14.7]} 18... Nbd7 {[%clk 0:01:57.6]} 19. Rc3
{[%clk 0:01:52.7]} 19... Bb7 {[%clk 0:01:40]} 20. Ndf3 {[%clk 0:01:46.2]} 20...
Rc8 {[%clk 0:01:38.5]} 21. Ra3 {[%clk 0:01:30.7]} 21... Qe7 {[%clk 0:01:23.3]}
22. Rb3 {[%clk 0:01:27.4]} 22... g6 {[%clk 0:01:18.2]} 23. Ng5 {[%clk
0:01:01.3]} 23... Nxe5 {[%clk 0:01:16.1]} 24. dxe5 {[%clk 0:01:02.2]} 24... Nd7
{[%clk 0:01:13.1]} 25. f4 {[%clk 0:01:02.5]} 25... Nxe5 {[%clk 0:01:08.6]} 26.
Qa1 {[%clk 0:00:29.1]} 26... Nxd3+ {[%clk 0:01:03.3]} 27. cxd3 {[%clk
0:00:25.7]} 27... Qc5 {[%clk 0:00:53.8]} 28. Ke2 {[%clk 0:00:08.7]} 28... Qc2+
{[%clk 0:00:40]} 29. Kf3 {[%clk 0:00:09]} 29... Qxb3 {[%clk 0:00:40.9]} 30. Qf6
{[%clk 0:00:08.9]} 30... d4+ {[%clk 0:00:35.9]} 31. e4 {[%clk 0:00:09.1]} 31...
Qxd3+ {[%clk 0:00:29.1]} 32. Kg4 {[%clk 0:00:07.3]} 32... Qe2+ {[%clk
0:00:27.1]} 33. Nf3 {[%clk 0:00:07.6]} 33... Qxe4 {[%clk 0:00:19.5]} 34. Qh8+
{[%clk 0:00:04]} 34... Ke7 {[%clk 0:00:16.8]} 35. Qh4+ {[%clk 0:00:04.5]} 35...
Kd6 {[%clk 0:00:16.1]} 36. Ne5 {[%clk 0:00:03]} 36... Qf5# {[%clk 0:00:15.2]}
0-1

[Event "*** Titled Tuesday Blitz"]
[Site "Chess.com"]
[Date "2020.12.29"]
[Round "5"]
[White "maximnovik"]
[Black "SantoBlue"]
[Result "0-1"]
[WhiteElo "2612"]
[BlackElo "2863"]
[TimeControl "180+1"]
[EndTime "10:54:44 PST"]
[Termination "SantoBlue won on time"]

1. Nf3 {[%clk 0:02:58.3]} 1... g6 {[%clk 0:02:58.4]} 2. g3 {[%clk 0:02:55.5]}
2... Bg7 {[%clk 0:02:58.7]} 3. Bg2 {[%clk 0:02:55.6]} 3... e5 {[%clk 0:02:58.9]}
4. O-O {[%clk 0:02:55.5]} 4... d5 {[%clk 0:02:57]} 5. d3 {[%clk 0:02:55.3]} 5...
Ne7 {[%clk 0:02:54.1]} 6. e4 {[%clk 0:02:55.1]} 6... c6 {[%clk 0:02:53.3]} 7.
Nbd2 {[%clk 0:02:43.4]} 7... O-O {[%clk 0:02:53]} 8. b4 {[%clk 0:02:43.3]} 8...
a5 {[%clk 0:02:51.9]} 9. bxa5 {[%clk 0:02:42.3]} 9... Qxa5 {[%clk 0:02:51.1]}
10. Bb2 {[%clk 0:02:39.8]} 10... d4 {[%clk 0:02:48.8]} 11. Nc4 {[%clk
0:02:39.2]} 11... Qc7 {[%clk 0:02:48.9]} 12. a4 {[%clk 0:02:25.6]} 12... Be6
{[%clk 0:02:47.6]} 13. Nfd2 {[%clk 0:02:13.4]} 13... Nd7 {[%clk 0:02:41]} 14. a5
{[%clk 0:02:10.6]} 14... f6 {[%clk 0:02:21.1]} 15. c3 {[%clk 0:02:09.3]} 15...
c5 {[%clk 0:02:20.6]} 16. Qc2 {[%clk 0:02:04.5]} 16... Nc6 {[%clk 0:02:19.7]}
17. cxd4 {[%clk 0:01:43.7]} 17... Nxd4 {[%clk 0:02:12.8]} 18. Bxd4 {[%clk
0:01:39.6]} 18... cxd4 {[%clk 0:02:13.7]} 19. Rfb1 {[%clk 0:01:36.1]} 19... Rfc8
{[%clk 0:02:13.6]} 20. Qd1 {[%clk 0:01:18.6]} 20... Bh6 {[%clk 0:02:09.4]} 21.
Rb5 {[%clk 0:01:06.2]} 21... Bxd2 {[%clk 0:02:00.3]} 22. Nxd2 {[%clk 0:01:03.4]}
22... Qc3 {[%clk 0:01:58.7]} 23. Rxb7 {[%clk 0:00:47.2]} 23... Nc5 {[%clk
0:01:58]} 24. Rb6 {[%clk 0:00:43.5]} 24... Rxa5 {[%clk 0:01:57.4]} 25. Rxa5
{[%clk 0:00:39.6]} 25... Qxa5 {[%clk 0:01:57.3]} 26. Rxe6 {[%clk 0:00:30.1]}
26... Nxe6 {[%clk 0:01:57.5]} 27. Bh3 {[%clk 0:00:28.6]} 27... Rc6 {[%clk
0:01:32.8]} 28. Nc4 {[%clk 0:00:24.2]} 28... Qa2 {[%clk 0:01:17.1]} 29. Bxe6+
{[%clk 0:00:18.9]} 29... Rxe6 {[%clk 0:01:16.6]} 30. Qg4 {[%clk 0:00:19.3]}
30... Qa6 {[%clk 0:01:13.2]} 31. h4 {[%clk 0:00:17.7]} 31... Qc8 {[%clk
0:01:12.6]} 32. h5 {[%clk 0:00:17.1]} 32... Rc6 {[%clk 0:01:12.3]} 33. Qh4
{[%clk 0:00:14.2]} 33... g5 {[%clk 0:01:11.9]} 34. Qh1 {[%clk 0:00:13.2]} 34...
Rxc4 {[%clk 0:01:11.7]} 35. dxc4 {[%clk 0:00:12.5]} 35... Qxc4 {[%clk
0:01:03.9]} 36. Qf3 {[%clk 0:00:12.9]} 36... Qe6 {[%clk 0:01:02.4]} 37. h6
{[%clk 0:00:09.7]} 37... Kf7 {[%clk 0:01:01.4]} 38. Kg2 {[%clk 0:00:09.2]} 38...
Kg6 {[%clk 0:01:00.7]} 39. g4 {[%clk 0:00:08.9]} 39... Kxh6 {[%clk 0:01:00.3]}
40. Kg3 {[%clk 0:00:08.8]} 40... Kg6 {[%clk 0:00:59.8]} 41. Qa3 {[%clk
0:00:07.5]} 41... Qf7 {[%clk 0:00:58.5]} 42. Qd6 {[%clk 0:00:06.8]} 42... Kg7
{[%clk 0:00:59.4]} 43. f3 {[%clk 0:00:06.5]} 43... h6 {[%clk 0:01:00.3]} 44. Qd8
{[%clk 0:00:06.1]} 44... h5 {[%clk 0:01:00.8]} 45. gxh5 {[%clk 0:00:03.1]} 45...
Qxh5 {[%clk 0:01:01.7]} 46. Qe7+ {[%clk 0:00:03.2]} 46... Qf7 {[%clk 0:01:02.6]}
47. Qd8 {[%clk 0:00:03.1]} 47... Qa7 {[%clk 0:01:00.2]} 48. Kg4 {[%clk
0:00:01.5]} 48... Qa2 {[%clk 0:00:55.7]} 49. Kf5 {[%clk 0:00:01.3]} 49... Qf7
{[%clk 0:00:56.1]} 50. Qd6 {[%clk 0:00:01.1]} 50... Qg6+ {[%clk 0:00:54.5]} 51.
Kg4 {[%clk 0:00:01.6]} 51... f5+ {[%clk 0:00:54.9]} 0-1